bitfinex/quotes_BTCUSD_20250129
["timestamp","ask_amount","ask_price","bid_price","bid_amount"]
[1738189796969,1e-08,103760.0,103750.0,1.39291688]
[1738189797171,1e-08,103760.0,103750.0,1.40260632]
[1738189797373,1e-08,103760.0,103750.0,2.90260632]
[1738189798262,1e-08,103770.0,103760.0,0.469164]
[1738189798473,1e-08,103770.0,103760.0,0.84310288]
[1738189798692,1e-08,103780.0,103770.0,0.15]
[1738189798922,0.0001819,103810.0,103800.0,0.144508]
[1738189799290,0.00032637,103810.0,103800.0,0.64189017]
[1738189799549,0.00032637,103810.0,103800.0,0.64140614]
[1738189800747,0.00032637,103810.0,103800.0,0.51657865]
[1738189801184,0.00032637,103810.0,103800.0,0.32316578]
[1738189801436,0.19132037,103810.0,103790.0,0.385364]
[1738189801662,0.0762,103800.0,103790.0,0.19268]
[1738189802155,0.0762,103800.0,103790.0,0.31799213]
[1738189802355,0.07611184,103800.0,103790.0,0.31750749]
[1738189802581,0.07611184,103800.0,103790.0,0.19268]
[1738189802809,0.07611184,103800.0,103790.0,0.31999212]
[1738189803089,0.04682637,103810.0,103800.0,0.144508]
[1738189803358,0.48123653,103810.0,103790.0,0.529877]
[1738189803593,0.48123653,103810.0,103790.0,0.532877]
[1738189803808,0.48123653,103810.0,103790.0,0.541877]
[1738189803965,0.48123653,103810.0,103800.0,0.144508]
[1738189804505,0.48123653,103810.0,103800.0,0.49189055]
[1738189804506,0.00032637,103810.0,103800.0,0.49189055]
[1738189804705,0.00032637,103810.0,103800.0,0.49140614]
[1738189804914,0.00032637,103810.0,103800.0,0.36657865]
[1738189805330,0.00132637,103810.0,103800.0,0.36657865]
[1738189807843,0.00132637,103810.0,103800.0,0.37643345]
[1738189808242,0.00132637,103810.0,103800.0,0.39555612]
[1738189808446,0.00132637,103810.0,103800.0,0.52038361]
[1738189808862,0.00132637,103810.0,103800.0,0.39555612]
[1738189809691,0.00132637,103810.0,103800.0,0.26933549]
[1738189809920,0.27102037,103810.0,103800.0,0.144508]
[1738189810558,0.46368537,103810.0,103790.0,0.65496027]
[1738189810768,0.65635437,103810.0,103790.0,0.65496027]
[1738189810996,0.75359653,103810.0,103790.0,0.53013278]
[1738189811203,0.75359653,103810.0,103790.0,0.72282078]
[1738189811460,0.75259653,103810.0,103790.0,0.53013278]
[1738189811675,0.65535337,103810.0,103790.0,0.72281878]
[1738189811894,0.65535337,103810.0,103790.0,0.53213278]
[1738189812050,0.65535337,103810.0,103790.0,0.73281978]
[1738189812253,0.46268537,103810.0,103790.0,0.54013278]
[1738189812453,0.46268537,103810.0,103800.0,0.144508]
[1738189813583,0.46268537,103810.0,103790.0,0.53213378]
[1738189813767,0.27002037,103810.0,103800.0,0.144508]
[1738189814830,0.27102037,103810.0,103800.0,0.144508]
[1738189820322,0.00132637,103810.0,103800.0,0.144508]
[1738189824888,0.00132637,103810.0,103800.0,0.14499247]
[1738189826008,0.00132637,103810.0,103800.0,0.44676312]
[1738189826216,0.00132637,103810.0,103800.0,0.44627865]
[1738189827691,0.00132637,103810.0,103800.0,0.26933549]
[1738189828010,0.00132637,103810.0,103800.0,0.26959127]
[1738189829137,0.00132637,103810.0,103800.0,0.28906316]
[1738189830567,0.00132637,103810.0,103800.0,0.29880367]
[1738189830944,0.00132637,103810.0,103800.0,0.26959127]
[1738189832978,0.00132637,103810.0,103800.0,1.76959127]
[1738189834347,0.00132637,103810.0,103800.0,1.86683443]
[1738189835575,0.00132637,103810.0,103800.0,2.26576192]
[1738189835985,0.00132637,103810.0,103800.0,0.79580199]
[1738189836384,0.00132637,103810.0,103800.0,2.29580199]
[1738189838128,0.00132637,103810.0,103800.0,2.29560501]
[1738189838316,0.00132637,103810.0,103800.0,0.79560501]
[1738189838517,0.0001218,103820.0,103810.0,0.15]
[1738189838719,0.0001218,103820.0,103810.0,0.67648836]
[1738189839069,0.0155809,103840.0,103830.0,0.294466]
[1738189839303,0.0155809,103840.0,103830.0,0.41929349]
[1738189840244,0.0155809,103840.0,103830.0,0.51653665]
[1738189841289,0.0165809,103840.0,103830.0,0.51653665]
[1738189842689,0.0165809,103840.0,103830.0,0.56613665]
[1738189842690,0.0155809,103840.0,103830.0,0.56613665]
[1738189843068,0.0155809,103840.0,103830.0,0.57813665]
[1738189843674,0.0155809,103840.0,103830.0,0.58761346]
[1738189846120,0.0155809,103840.0,103830.0,0.79154095]
[1738189846881,0.0155809,103840.0,103830.0,2.29154095]
[1738189847505,0.0155809,103840.0,103830.0,2.31079464]
[1738189848312,0.0155809,103840.0,103830.0,0.81079464]
[1738189848945,0.1242219,103870.0,103840.0,0.15]
[1738189848946,0.0001219,103870.0,103840.0,0.15]
[1738189849161,0.00060358,103870.0,103860.0,0.41925249]
[1738189849365,0.08060358,103870.0,103860.0,0.294425]
[1738189850322,0.08060358,103870.0,103860.0,0.144425]
[1738189850956,0.08060358,103870.0,103860.0,0.147425]
[1738189851166,0.22501458,103870.0,103860.0,0.147425]
[1738189851761,0.08060358,103870.0,103860.0,0.147425]
[1738189852170,0.37326128,103870.0,103860.0,0.003]
[1738189852473,0.37205774,103870.0,103860.0,0.012]
[1738189852614,0.37205774,103870.0,103860.0,0.009]
[1738189852875,0.1239,103860.0,103840.0,0.192594]
[1738189853091,0.144439,103850.0,103840.0,0.144452]
[1738189853700,0.509058,103860.0,103840.0,0.144452]
[1738189853923,0.653493,103860.0,103840.0,0.337043]
[1738189854261,0.653493,103860.0,103840.0,0.538636]
[1738189854776,0.653493,103860.0,103840.0,0.541636]
[1738189855173,0.653489,103860.0,103840.0,0.541636]
[1738189855740,0.653489,103860.0,103840.0,0.532636]
[1738189855946,0.144439,103850.0,103840.0,0.155452]
[1738189856133,0.144439,103850.0,103840.0,0.152452]
[1738189856352,0.144439,103850.0,103840.0,0.154452]
[1738189856737,0.65349,103860.0,103840.0,0.144452]
[1738189856889,0.337032,103850.0,103840.0,0.144452]
[1738189857099,0.75073116,103860.0,103840.0,0.346047]
[1738189857484,0.60629616,103860.0,103840.0,0.346047]
[1738189857713,0.75072916,103860.0,103840.0,0.349047]
[1738189858134,0.460909,103860.0,103840.0,0.349045]
[1738189858332,0.460909,103860.0,103850.0,0.144439]
[1738189858555,0.460909,103860.0,103840.0,0.532646]
[1738189858979,0.460909,103860.0,103840.0,0.540646]
[1738189859165,0.460909,103860.0,103840.0,0.337044]
[1738189859372,0.460909,103860.0,103850.0,0.144439]
[1738189860060,0.460909,103860.0,103840.0,0.539636]
[1738189860287,0.460909,103860.0,103840.0,0.529636]
[1738189860488,0.268333,103860.0,103850.0,0.144439]
[1738189860693,0.269333,103860.0,103840.0,0.529646]
[1738189860894,0.461903,103860.0,103840.0,0.529646]
[1738189861311,0.269333,103860.0,103850.0,0.144439]
[1738189861514,0.269325,103860.0,103850.0,0.144439]
[1738189862841,0.268325,103860.0,103850.0,0.144439]
[1738189863056,0.1239,103860.0,103850.0,0.144439]
[1738189863464,0.53014358,103870.0,103860.0,0.144425]
[1738189863465,0.41408258,103870.0,103860.0,0.144425]
[1738189863681,0.51132574,103870.0,103860.0,0.144425]
[1738189864316,0.00060358,103870.0,103860.0,0.14490807]
[1738189864726,0.00160358,103870.0,103860.0,0.14490807]
[1738189865374,0.00160358,103870.0,103860.0,0.51697872]
[1738189865571,0.00160358,103870.0,103860.0,0.47386816]
[1738189866001,0.00160358,103870.0,103860.0,0.59869565]
[1738189866231,0.00160358,103870.0,103860.0,0.47386816]
[1738189866449,0.00060358,103870.0,103860.0,0.47386816]
[1738189866884,0.00160358,103870.0,103860.0,0.47386816]
[1738189867289,0.00160358,103870.0,103860.0,0.39166816]
[1738189868059,0.00160358,103870.0,103860.0,0.64409565]
[1738189868091,0.00160358,103870.0,103860.0,0.76892314]
[1738189868808,0.00160358,103870.0,103860.0,2.14409565]
[1738189869218,0.00160358,103870.0,103860.0,2.34188047]
[1738189869445,0.00160358,103870.0,103860.0,2.36159894]
[1738189869873,0.00060358,103870.0,103860.0,2.36159894]
[1738189870077,0.00060358,103870.0,103860.0,2.37059894]
[1738189870292,0.1265218,103920.0,103900.0,0.384981]
[1738189870521,0.12666629,103920.0,103910.0,0.144355]
[1738189870699,0.27100729,103920.0,103910.0,0.144355]
[1738189871042,0.12666629,103920.0,103910.0,0.144355]
[1738189871254,0.00026629,103920.0,103910.0,0.144355]
[1738189871669,0.00026629,103920.0,103910.0,0.145355]
[1738189871929,0.08296629,103920.0,103910.0,0.145355]
[1738189872523,0.08296629,103920.0,103910.0,0.144355]
[1738189872926,0.00026629,103920.0,103910.0,0.144355]
[1738189873260,0.33806229,103920.0,103910.0,0.144355]
[1738189873583,0.14460729,103920.0,103900.0,0.608216]
[1738189873841,0.14560729,103920.0,103910.0,0.144355]
[1738189874437,0.00126629,103920.0,103910.0,0.144355]
[1738189875245,0.00026629,103920.0,103910.0,0.144355]
[1738189876076,0.00026629,103920.0,103910.0,0.26966443]
[1738189876280,0.00026629,103920.0,103910.0,0.144355]
[1738189876609,0.00026629,103920.0,103910.0,0.1448368]
[1738189877124,0.00026629,103920.0,103910.0,0.26966429]
[1738189877330,0.00026629,103920.0,103910.0,0.48922565]
[1738189877546,0.00026629,103920.0,103910.0,0.63922565]
[1738189879116,0.00026629,103920.0,103910.0,0.64922565]
[1738189879537,0.00026629,103920.0,103910.0,0.64822565]
[1738189879885,0.00026629,103920.0,103910.0,0.65122565]
[1738189880290,0.00026629,103920.0,103910.0,0.67060698]
[1738189880489,1e-08,103920.0,103910.0,0.79543447]
[1738189880718,1e-08,103920.0,103910.0,2.29543447]
[1738189880911,0.015459,103940.0,103930.0,0.144327]
[1738189881129,0.015459,103940.0,103930.0,0.36687904]
[1738189881346,0.015459,103940.0,103930.0,0.36639765]
[1738189881741,0.015459,103940.0,103930.0,0.26915449]
[1738189881960,0.015459,103940.0,103930.0,0.144327]
[1738189882156,0.015459,103940.0,103930.0,2.153327]
[1738189882422,0.015459,103940.0,103930.0,2.156327]
[1738189882625,0.015459,103940.0,103930.0,2.28115449]
[1738189883028,0.015459,103940.0,103930.0,2.37839765]
[1738189883258,0.015459,103940.0,103930.0,2.52839765]
[1738189884695,0.0153709,103940.0,103930.0,2.52839765]
[1738189887152,0.0001818,103950.0,103940.0,0.294314]
[1738189887297,0.0001818,103950.0,103940.0,0.51638465]
[1738189888345,0.0001818,103950.0,103940.0,0.56438465]
[1738189888773,0.0001218,103960.0,103950.0,0.3143]
[1738189888980,0.0001218,103970.0,103960.0,0.294286]
[1738189889192,0.00026613,103970.0,103960.0,0.51635665]
[1738189889400,0.00026613,103970.0,103960.0,2.01635665]
[1738189890224,0.00026613,103970.0,103960.0,2.18615665]
[1738189890469,0.00026613,103970.0,103960.0,0.69515665]
[1738189890787,1.3e-07,103970.0,103960.0,0.81998414]
[1738189890954,9.3e-07,103980.0,103970.0,0.347272]
[1738189891223,0.00016,104010.0,104000.0,0.29423]
[1738189891466,0.00030419,104010.0,104000.0,0.51630065]
[1738189891711,0.00030419,104010.0,104000.0,2.01630065]
[1738189892155,0.00030419,104010.0,104000.0,2.06410065]
[1738189892402,0.0001218,104030.0,104020.0,0.41903049]
[1738189892639,0.0001218,104030.0,104020.0,0.51627365]
[1738189892872,0.0001218,104030.0,104020.0,2.01627365]
[1738189894094,0.0001218,104030.0,104020.0,2.13057365]
[1738189894562,0.0001218,104030.0,104020.0,2.12057365]
[1738189894790,0.0011218,104030.0,104020.0,0.62057365]
[1738189895417,0.0011218,104030.0,104020.0,0.51627365]
[1738189895636,0.0011218,104030.0,104020.0,0.39144616]
[1738189895870,0.0001218,104030.0,104020.0,0.294203]
[1738189896121,0.0001218,104030.0,104020.0,0.303203]
[1738189896573,0.0001218,104030.0,104020.0,0.153203]
[1738189897254,0.0001218,104030.0,104020.0,0.144203]
[1738189897514,0.0001218,104030.0,104020.0,0.26903049]
[1738189898587,0.0001218,104030.0,104020.0,0.152203]
[1738189898999,0.0001218,104030.0,104020.0,0.144203]
[1738189899550,0.0001218,104030.0,104020.0,0.147203]
[1738189901192,0.0001218,104030.0,104020.0,0.36927365]
[1738189901600,0.0001218,104030.0,104020.0,0.24444616]
[1738189902018,0.0001218,104030.0,104020.0,0.36927365]
[1738189902648,0.0001218,104030.0,104020.0,0.51927365]
[1738189902999,0.0001218,104030.0,104020.0,0.54881155]
[1738189903403,0.0001218,104030.0,104020.0,0.42098406]
[1738189903603,0.0001218,104030.0,104020.0,0.42498406]
[1738189903803,0.0001218,104030.0,104020.0,0.52027365]
[1738189904208,0.01744075,104040.0,104030.0,0.15]
[1738189904438,0.01744075,104040.0,104030.0,0.42096882]
[1738189904611,0.01744075,104040.0,104030.0,0.54579631]
[1738189906178,0.383429,104070.0,104050.0,0.528567]
[1738189906389,0.38357321,104070.0,104060.0,0.144147]
[1738189907122,0.31145812,104070.0,104060.0,0.144147]
[1738189907350,0.31145812,104070.0,104060.0,0.17446736]
[1738189907616,0.31145812,104070.0,104060.0,0.144147]
[1738189907813,0.31145812,104070.0,104050.0,0.528561]
[1738189908432,0.31145812,104070.0,104050.0,0.384409]
[1738189908601,0.14428721,104070.0,104060.0,0.144147]
[1738189909563,0.00014421,104070.0,104060.0,0.144147]
[1738189909768,0.14527721,104070.0,104060.0,0.144147]
[1738189909969,0.33745821,104070.0,104060.0,0.144147]
[1738189910196,0.52963921,104070.0,104050.0,0.528557]
[1738189910391,0.52963921,104070.0,104040.0,0.192225]
[1738189910392,0.336343,104060.0,104040.0,0.528612]
[1738189910594,0.528543,104060.0,104040.0,0.528612]
[1738189911001,0.144148,104060.0,104050.0,0.144158]
[1738189911457,0.336349,104060.0,104040.0,0.528608]
[1738189911671,0.144161,104050.0,104040.0,0.192221]
[1738189912356,0.144161,104050.0,104030.0,0.53828771]
[1738189912557,0.336378,104050.0,104030.0,0.52890915]
[1738189912761,0.144175,104040.0,104030.0,0.19249115]
[1738189912960,0.144175,104040.0,104030.0,0.00025515]
[1738189913588,0.144175,104040.0,104030.0,0.14444415]
[1738189914482,0.655615,104050.0,104030.0,0.33669315]
[1738189914620,0.46339,104050.0,104040.0,0.003]
[1738189914997,0.46339,104050.0,104030.0,0.33669315]
[1738189915105,0.655616,104050.0,104030.0,0.33669315]
[1738189915308,0.655616,104050.0,104030.0,0.33969315]
[1738189915714,0.655616,104050.0,104030.0,0.33669315]
[1738189916135,0.655616,104050.0,104030.0,0.33869315]
[1738189917324,0.655616,104050.0,104030.0,0.36835979]
[1738189917523,0.144175,104040.0,104030.0,0.17611079]
[1738189917754,0.655614,104050.0,104030.0,0.36835979]
[1738189918576,0.655614,104050.0,104030.0,0.55860879]
[1738189918810,0.60817,104060.0,104040.0,0.336396]
[1738189919052,0.336389,104050.0,104030.0,0.53193715]
[1738189919255,0.336389,104050.0,104040.0,0.144175]
[1738189919411,0.528608,104050.0,104030.0,0.52893715]
[1738189919613,0.529608,104050.0,104030.0,0.55864838]
[1738189920610,0.144175,104040.0,104030.0,0.36639738]
[1738189920782,0.144175,104040.0,104030.0,0.17415538]
[1738189921808,0.144175,104040.0,104030.0,0.02996638]
[1738189921978,0.144175,104040.0,104030.0,0.17415538]
[1738189922470,0.145175,104040.0,104030.0,0.17415538]
[1738189923057,0.145175,104040.0,104030.0,0.02996638]
[1738189923215,0.145175,104040.0,104030.0,0.17415538]
[1738189925295,0.141175,104040.0,104030.0,0.17415538]
[1738189925663,0.001,104040.0,104030.0,0.17415538]
[1738189926649,0.145175,104040.0,104030.0,0.17415538]
[1738189928886,0.145175,104040.0,104030.0,0.02996638]
[1738189929121,0.145175,104040.0,104030.0,0.17415538]
[1738189930222,0.144175,104040.0,104030.0,0.00025515]
[1738189930436,0.14537659,104040.0,104030.0,0.00025515]
[1738189931094,0.26561975,104040.0,104030.0,0.00025515]
[1738189931319,0.44444565,104040.0,104030.0,0.00025515]
[1738189932182,0.61444565,104040.0,104030.0,0.00025515]
[1738189932390,0.61544565,104040.0,104030.0,0.00025515]
[1738189932825,0.73027314,104040.0,104030.0,0.00025515]
[1738189932951,0.60544565,104040.0,104030.0,0.00025515]
[1738189933143,0.68354565,104040.0,104030.0,0.00025515]
[1738189933338,0.80837314,104040.0,104030.0,0.00025515]
[1738189933571,0.68254565,104040.0,104030.0,0.00025515]
[1738189933767,0.80737314,104040.0,104030.0,0.00025515]
[1738189933972,0.68254565,104040.0,104030.0,0.00025515]
[1738189934212,0.80271995,104040.0,104030.0,0.00025515]
[1738189934733,0.81255597,104040.0,104030.0,0.00025515]
[1738189935693,0.90991273,104040.0,104030.0,0.00025515]
[1738189935896,0.93555948,104040.0,104030.0,0.00025515]
[1738189936098,1.23555948,104040.0,104030.0,1.5e-07]
[1738189936353,1.21555948,104040.0,104030.0,1.5e-07]
[1738189936556,0.1256,104010.0,103970.0,0.46247836]
[1738189936778,0.144258,103980.0,103970.0,0.07775536]
[1738189936983,0.144258,103980.0,103970.0,0.00025536]
[1738189937403,0.144258,103980.0,103970.0,0.14452736]
[1738189937754,0.528937,103990.0,103970.0,0.14467157]
[1738189937934,0.144258,103980.0,103970.0,0.14467157]
[1738189938132,0.528932,103990.0,103970.0,0.14467157]
[1738189938681,0.528932,103990.0,103970.0,0.14867157]
[1738189938883,0.528932,103990.0,103970.0,0.34103157]
[1738189939074,0.144258,103980.0,103970.0,0.34103157]
[1738189939293,0.144258,103990.0,103970.0,0.19675057]
[1738189939420,0.33778722,103990.0,103970.0,0.53337557]
[1738189939971,0.33778722,103990.0,103970.0,0.52937557]
[1738189940113,0.53011422,103990.0,103970.0,0.53237557]
[1738189940542,0.24724316,103980.0,103950.0,1.80378003]
[1738189940797,0.144286,103960.0,103950.0,0.00048091]
[1738189940990,0.14548857,103960.0,103950.0,0.00048091]
[1738189941835,0.14548857,103960.0,103950.0,0.00448091]
[1738189942042,0.24273173,103960.0,103950.0,0.00448091]
[1738189942267,0.24152916,103960.0,103950.0,0.00448091]
[1738189942484,0.36635665,103960.0,103950.0,0.00448091]
[1738189943153,0.36635665,103960.0,103950.0,0.00048091]
[1738189943364,0.36735665,103960.0,103950.0,0.00048091]
[1738189943579,0.46471341,103960.0,103950.0,0.00048091]
[1738189943778,0.36635665,103960.0,103950.0,0.00048091]
[1738189944238,0.36835665,103960.0,103950.0,0.00048091]
[1738189944452,0.24352916,103960.0,103950.0,0.00048091]
[1738189944662,0.39135665,103960.0,103950.0,0.00048091]
[1738189944870,0.54135665,103960.0,103950.0,0.00048091]
[1738189945297,0.64480736,103960.0,103950.0,0.00048091]
[1738189946061,0.64480736,103960.0,103950.0,0.0007369]
[1738189947089,0.64480736,103960.0,103950.0,2.0007369]
[1738189947447,0.74739485,103960.0,103950.0,2.0007369]
[1738189947652,0.58985665,103960.0,103950.0,2.0007369]
[1738189947862,0.62561665,103960.0,103950.0,2.0007369]
[1738189948290,0.72044414,103960.0,103950.0,2.0007369]
[1738189948543,0.79924414,103960.0,103950.0,2.0007369]
[1738189948745,0.8089324,103960.0,103950.0,2.0007369]
[1738189948944,0.90628916,103960.0,103950.0,2.0007369]
[1738189949160,0.92628916,103960.0,103950.0,2.0007369]
[1738189949382,0.90928916,103960.0,103950.0,2.0007369]
[1738189949790,0.90628916,103960.0,103950.0,2.0007369]
[1738189950667,0.70910491,103960.0,103950.0,2.0007369]
[1738189951064,0.8339324,103960.0,103950.0,2.0007369]
[1738189951280,0.70910491,103960.0,103950.0,2.0007369]
[1738189951749,0.68910491,103960.0,103950.0,2.0007369]
[1738189956426,0.53134491,103960.0,103950.0,2.0007369]
[1738189956629,0.58986491,103960.0,103950.0,2.0007369]
[1738189957208,0.73986491,103960.0,103950.0,2.0007369]
[1738189958081,0.74986491,103960.0,103950.0,2.0007369]
[1738189958815,0.73986491,103960.0,103950.0,2.0007369]
[1738189959051,0.74986491,103960.0,103950.0,2.0007369]
[1738189959500,0.74486491,103960.0,103950.0,2.0007369]
[1738189959703,0.73486491,103960.0,103950.0,2.0007369]
[1738189959919,0.73986491,103960.0,103950.0,2.0007369]
[1738189960351,0.73486491,103960.0,103950.0,2.0007369]
[1738189960531,0.74486491,103960.0,103950.0,2.0007369]
[1738189960674,0.74886491,103960.0,103950.0,2.0007369]
[1738189960866,0.62156491,103960.0,103950.0,2.0007369]
[1738189961257,0.24552916,103960.0,103950.0,2.0007369]
[1738189961473,0.148286,103960.0,103950.0,2.0007369]
[1738189961936,0.14948853,103960.0,103950.0,2.1450369]
[1738189962145,0.14548853,103960.0,103950.0,2.0007369]
[1738189962584,0.14848853,103960.0,103950.0,2.0007369]
[1738189962985,0.14548853,103960.0,103950.0,2.1450369]
[1738189963265,0.14748853,103960.0,103950.0,2.1450369]
[1738189963481,0.002,103960.0,103950.0,2.1450369]
[1738189964875,0.002,103960.0,103950.0,2.2280369]
[1738189965683,0.002,103960.0,103950.0,2.2731369]
[1738189966754,0.002,103960.0,103950.0,2.49520755]
[1738189967175,0.002,103960.0,103950.0,2.52498986]
[1738189967840,0.000122,103970.0,103950.0,2.44198986]
[1738189968234,0.000122,103970.0,103960.0,0.268086]
[1738189968444,0.00432389,103970.0,103960.0,0.51532916]
[1738189968653,0.000122,103970.0,103960.0,0.51532916]
[1738189968866,0.000122,103970.0,103960.0,0.64015665]
[1738189969069,0.002122,103970.0,103960.0,0.6699519]
[1738189969500,0.002122,103970.0,103960.0,0.54512441]
[1738189969904,0.000122,103970.0,103960.0,0.54512441]
[1738189970109,0.000122,103970.0,103960.0,0.6699519]
[1738189971758,0.002122,103970.0,103960.0,0.6699519]
[1738189973058,0.002122,103970.0,103960.0,0.67976319]
[1738189973301,0.000122,103970.0,103960.0,0.67976319]
[1738189973707,0.001122,103970.0,103960.0,0.70276319]
[1738189973878,0.336486,104020.0,104010.0,0.144216]
[1738189974247,0.144211,104020.0,104010.0,0.144216]
[1738189974424,0.00120183,104020.0,104010.0,0.144216]
[1738189974627,0.14539177,104030.0,104020.0,0.144203]
[1738189974827,0.00120177,104030.0,104020.0,0.144203]
[1738189975027,0.144189,104030.0,104020.0,0.144203]
[1738189975467,0.3365439,104040.0,104020.0,0.33647]
[1738189975729,0.58378706,104040.0,104030.0,0.0773]
[1738189975895,0.43378706,104040.0,104030.0,0.0773]
[1738189976105,0.4433765,104040.0,104030.0,0.0773]
[1738189976753,0.5933765,104040.0,104030.0,0.0773]
[1738189977524,0.58378706,104040.0,104030.0,0.0773]
[1738189978227,0.4865439,104040.0,104030.0,0.221489]
[1738189978403,0.1443079,104040.0,104030.0,0.221489]
[1738189980908,0.144189,104030.0,104020.0,0.274003]
[1738189981067,0.62604306,104040.0,104020.0,0.418563]
[1738189981269,0.144189,104030.0,104020.0,0.226303]
[1738189981899,0.144189,104030.0,104020.0,0.0821]
[1738189982085,0.144203,104020.0,104010.0,0.225316]
[1738189982297,0.144203,104020.0,104010.0,0.0811]
[1738189982501,0.14540472,104020.0,104010.0,0.0811]
[1738189982707,0.144203,104020.0,104010.0,0.0811]
[1738189983290,0.144203,104020.0,104010.0,0.0851]
[1738189983514,0.144203,104020.0,104010.0,0.229316]
[1738189984637,0.144203,104020.0,104010.0,0.225316]
[1738189984845,0.144203,104020.0,104010.0,0.144216]
[1738189985050,0.14423,104000.0,103990.0,0.220939]
[1738189985260,0.528832,104010.0,103990.0,0.41340019]
[1738189985463,0.14543195,104000.0,103990.0,0.22108819]
[1738189985665,0.14423,104000.0,103990.0,0.22108819]
[1738189986199,0.528832,104010.0,103990.0,0.22408819]
[1738189986399,0.14423,104000.0,103990.0,0.22408819]
[1738189986593,0.528832,104010.0,103990.0,0.22408819]
[1738189986893,0.14423,104000.0,103990.0,0.22408819]
[1738189987829,0.14423,104000.0,103990.0,0.07684419]
[1738189988132,0.14523,104000.0,103990.0,0.07684419]
[1738189989433,0.14423,104000.0,103990.0,0.07684419]
[1738189989633,0.14423,104000.0,103990.0,0.00014419]
[1738189989634,0.14623,104000.0,103990.0,0.00014419]
[1738189989843,0.14743206,104000.0,103990.0,0.00014419]
[1738189990566,0.14743206,104000.0,103990.0,0.14438819]
[1738189990744,0.14623,104000.0,103990.0,0.00014419]
[1738189990945,0.14543206,104000.0,103990.0,0.00014419]
[1738189991083,0.14643206,104000.0,103990.0,0.00014419]
[1738189993064,0.14643206,104000.0,103990.0,0.14438819]
[1738189993264,0.14523,104000.0,103990.0,0.14438819]
[1738189993433,0.14643205,104000.0,103990.0,0.14438819]
[1738189994427,0.00220205,104000.0,103990.0,0.14438819]
[1738189994628,0.001,104000.0,103990.0,0.14438819]
[1738190001998,0.001,104000.0,103990.0,0.00014419]
[1738190001999,0.316432,104000.0,103990.0,0.00014419]
[1738190002195,0.29523,104000.0,103990.0,0.00014419]
[1738190002425,0.29523,104000.0,103990.0,2.00014419]
[1738190004116,0.39247316,104000.0,103990.0,2.00014419]
[1738190004995,0.41547316,104000.0,103990.0,2.00014419]
[1738190005176,0.56030065,104000.0,103990.0,2.00014419]
[1738190005386,0.63020065,104000.0,103990.0,2.00014419]
[1738190006011,0.62020065,104000.0,103990.0,2.00014419]
[1738190006220,0.71755741,104000.0,103990.0,2.00014419]
[1738190006345,0.76575741,104000.0,103990.0,2.00014419]
[1738190006560,0.77549378,104000.0,103990.0,2.00014419]
[1738190007570,0.77449378,104000.0,103990.0,2.00014419]
[1738190007773,0.77749378,104000.0,103990.0,2.00014419]
[1738190008382,0.67713702,104000.0,103990.0,2.00014419]
[1738190008591,0.68013702,104000.0,103990.0,2.00014419]
[1738190009255,0.69983927,104000.0,103990.0,2.00014419]
[1738190009680,0.69983927,104000.0,103990.0,1.9775759]
[1738190011335,0.88753407,104000.0,103990.0,1.8814109]
[1738190011564,0.98990913,104000.0,103990.0,1.8814109]
[1738190011766,0.98990913,104000.0,103990.0,1.84170759]
[1738190012124,0.98990913,104000.0,103990.0,1.80324159]
[1738190012335,0.98690913,104000.0,103990.0,1.74554259]
[1738190013238,0.98690913,104000.0,103990.0,1.68784359]
[1738190013455,0.98690913,104000.0,103990.0,1.64280104]
[1738190014094,0.98690913,104000.0,103990.0,1.62356804]
[1738190014301,0.99290913,104000.0,103990.0,1.54763604]
[1738190014502,0.99290913,104000.0,103990.0,1.52686604]
[1738190014766,0.99290913,104000.0,103990.0,1.48906604]
[1738190015756,0.99290913,104000.0,103990.0,1.37753704]
[1738190017372,0.98690913,104000.0,103990.0,1.37653704]
[1738190017590,0.99290913,104000.0,103990.0,1.37753704]
[1738190017981,0.62072488,104000.0,103990.0,1.37753704]
[1738190018184,0.4686727,104000.0,103990.0,1.37753704]
[1738190018384,0.41897045,104000.0,103990.0,1.37779303]
[1738190018672,0.25720953,104000.0,103990.0,1.37779303]
[1738190018921,0.25720953,104000.0,103990.0,1.52203703]
[1738190019160,0.000122,104000.0,103990.0,1.59923703]
[1738190020594,0.005122,104000.0,103990.0,1.59923703]
[1738190021149,0.000122,104000.0,103990.0,1.59923703]
[1738190021351,0.336484,104020.0,104000.0,0.00269618]
[1738190021554,0.43372716,104020.0,104000.0,0.53152318]
[1738190022356,0.62600816,104020.0,104000.0,0.53152318]
[1738190022906,0.43372716,104020.0,104000.0,0.53152318]
[1738190023790,0.294216,104010.0,104000.0,0.00269618]
[1738190024748,0.144216,104010.0,104000.0,0.14692618]
[1738190025150,0.67808916,104020.0,104000.0,0.33922918]
[1738190025151,0.43773316,104020.0,104000.0,0.33922918]
[1738190025389,0.62601316,104020.0,104000.0,0.33922918]
[1738190025747,0.002,104010.0,104000.0,0.33922918]
[1738190026926,0.62601316,104020.0,104000.0,0.33922918]
[1738190027127,0.43373316,104020.0,104000.0,0.33922918]
[1738190027382,0.002,104020.0,104010.0,0.144216]
[1738190027545,0.002,104020.0,104010.0,0.272816]
[1738190027718,0.14552374,104030.0,104020.0,0.144203]
[1738190027939,0.29552374,104030.0,104020.0,0.144203]
[1738190028147,0.294322,104030.0,104020.0,0.144203]
[1738190028541,0.486576,104030.0,104010.0,0.657369]
[1738190028748,0.486576,104030.0,104010.0,0.849648]
[1738190028982,4e-05,104020.0,104010.0,0.465089]
[1738190030852,4e-05,104020.0,104010.0,0.71233216]
[1738190031820,4e-05,104020.0,104010.0,0.56233216]
[1738190032394,0.00104,104020.0,104010.0,0.56233216]
[1738190034171,4e-05,104020.0,104010.0,0.56233216]
[1738190034504,4e-05,104020.0,104010.0,0.69115965]
[1738190035474,4e-05,104020.0,104010.0,0.56633216]
[1738190036839,4e-05,104020.0,104010.0,0.69115965]
[1738190037013,4e-05,104020.0,104010.0,0.56633216]
[1738190040384,4e-05,104020.0,104010.0,0.84115965]
[1738190041182,0.000122,104030.0,104020.0,0.144203]
[1738190041392,0.000122,104030.0,104020.0,0.49857365]
[1738190041598,0.000122,104030.0,104020.0,0.37374616]
[1738190042166,0.000122,104030.0,104020.0,0.49857365]
[1738190042997,0.000122,104030.0,104020.0,0.37374616]
[1738190043210,0.000122,104030.0,104020.0,0.276503]
[1738190045244,0.000122,104030.0,104020.0,0.226703]
[1738190045445,0.144311,104030.0,104020.0,0.226703]
[1738190045642,0.000122,104030.0,104020.0,0.226703]
[1738190045845,0.144311,104030.0,104020.0,0.226703]
[1738190046828,0.144311,104030.0,104020.0,0.0825]
[1738190047029,0.144311,104030.0,104020.0,0.226703]